bitfinex/quotes_SOLUSD_20240902
["timestamp","ask_amount","ask_price","bid_price","bid_amount"]
[1725297549948,22.84019624,132.74,132.68,65.0621]
[1725297550656,7.5341,132.73,132.68,65.0621]
[1725297551038,7.5346,132.72,132.68,65.0621]
[1725297551233,7.5342,132.73,132.68,65.0621]
[1725297553352,22.83989624,132.74,132.68,65.0621]
[1725297553940,7.5341,132.73,132.68,65.0621]
[1725297554347,7.5347,132.72,132.68,65.0621]
[1725297555560,7.5342,132.73,132.68,65.0621]
[1725297558943,15.30629624,132.74,132.7,50.0]
[1725297559149,7.5332,132.75,132.7,50.0]
[1725297559661,7.5314,132.78,132.72,50.0]
[1725297559845,22.83729624,132.79,132.74,50.0]
[1725297560459,15.30629624,132.79,132.74,50.0]
[1725297560841,22.83719624,132.79,132.74,50.0]
[1725297561559,7.5309,132.79,132.74,50.0]
[1725297562252,18.8191,132.85,132.76,50.0]
[1725297562453,15.30629624,132.82,132.76,50.0]
[1725297562658,15.30629624,132.82,132.77,1.50610113]
[1725297562967,15.30629624,132.8,132.74,50.0]
[1725297563259,15.30629624,132.8,132.75,45.0]
[1725297564041,15.30629624,132.8,132.76,50.0]
[1725297564272,15.30629624,132.8,132.75,45.0]
[1725297564782,15.30629624,132.8,132.76,50.0]
[1725297565281,22.83539624,132.82,132.76,50.0]
[1725297565845,15.30629624,132.8,132.74,50.0]
[1725297566050,7.5291,132.82,132.76,50.0]
[1725297566263,15.30629624,132.82,132.74,50.0]
[1725297566580,7.65499,132.81,132.74,50.0]
[1725297566871,15.30629624,132.78,132.73,22.9916]
[1725297567870,22.83769624,132.78,132.73,22.9916]
[1725297569574,0.12549,132.82,132.74,50.0]
[1725297569758,22.83639624,132.8,132.76,50.0]
[1725297570354,15.30629624,132.8,132.76,50.0]
[1725297570880,22.83539624,132.82,132.76,50.0]
[1725297571047,15.30629624,132.82,132.74,50.0]
[1725297571253,15.30629624,132.78,132.74,50.0]
[1725297571465,15.30629624,132.78,132.72,50.0]
[1725297571667,22.83769624,132.78,132.72,50.0]
[1725297572254,22.83769624,132.78,132.74,50.0]
[1725297572454,15.30629624,132.78,132.74,50.0]
[1725297575070,22.83659624,132.8,132.76,50.0]
[1725297575276,7.5307,132.79,132.73,50.0]
[1725297575473,7.5307,132.79,132.75,50.0]
[1725297578190,15.30629624,132.8,132.74,45.0]
[1725297578191,7.5315,132.78,132.74,45.0]
[1725297578389,7.5315,132.78,132.73,50.0]
[1725297578685,7.5319,132.77,132.72,0.12549]
[1725297578872,7.5319,132.77,132.72,45.25098]
[1725297579785,7.5319,132.77,132.73,50.0]
[1725297580898,7.5319,132.77,132.72,45.0]
[1725297581066,15.30629624,132.76,132.71,16.3655]
[1725297581267,7.5336,132.74,132.71,16.3655]
[1725297581685,7.5336,132.74,132.69,56.1955]
[1725297581893,7.5336,132.74,132.67,65.6018]
[1725297581894,22.83989624,132.74,132.67,65.6018]
[1725297582991,22.83989624,132.74,132.69,50.0]
[1725297584390,86.64308496,132.79,132.71,50.0]
[1725297584391,7.5331,132.75,132.71,50.0]
[1725297587568,7.5331,132.75,132.69,50.0]
[1725297587990,7.5339,132.74,132.67,65.6018]
[1725297588276,15.30629624,132.74,132.68,45.0]
[1725297588700,7.5348,132.72,132.68,45.0]
[1725297588899,7.5348,132.72,132.69,50.0]
[1725297589397,7.5348,132.72,132.68,45.0]
[1725297589584,7.5343,132.73,132.69,50.0]
[1725297590107,7.5337,132.74,132.7,1.50684749]
[1725297590485,7.5337,132.74,132.69,50.0]
[1725297592488,7.5341,132.73,132.67,65.6018]
[1725297593425,7.5341,132.73,132.69,50.0]
[1725297597925,7.5349,132.72,132.68,50.0]
[1725297598291,7.5342,132.73,132.68,50.0]
[1725297600530,7.5339,132.74,132.7,50.0]
[1725297602801,0.12549,132.78,132.72,50.0]
[1725297602802,15.9093,132.78,132.72,50.0]
[1725297602999,22.4322,132.82,132.76,50.0]
[1725297603214,29.9615,132.82,132.76,50.0]
[1725297603611,23.4386,132.82,132.76,50.0]
[1725297603814,7.5293,132.82,132.76,50.0]
[1725297604909,7.5305,132.8,132.74,50.0]
[1725297609931,7.5305,132.8,132.76,50.0]
[1725297610103,38.25497947,132.81,132.76,50.0]
[1725297610104,7.5297,132.81,132.76,50.0]
[1725297610514,7.5305,132.8,132.76,50.0]
[1725297611319,7.5306,132.79,132.76,50.0]
[1725297611526,7.5303,132.8,132.76,50.0]
[1725297614132,22.81955458,132.8,132.76,50.0]
[1725297614923,7.5322,132.77,132.73,16.547]
[1725297615129,15.28925458,132.76,132.7,66.1745]
[1725297615507,7.533,132.75,132.72,50.0]
[1725297615726,15.28925458,132.76,132.72,50.0]
[1725297615727,22.82185458,132.76,132.72,50.0]
[1725297617016,22.82185458,132.76,132.7,66.1745]
[1725297621537,7.5329,132.75,132.7,66.1745]
[1725297622422,23.1426,132.79,132.73,50.0]
[1725297622729,38.43185458,132.79,132.73,50.0]
[1725297622908,7.532,132.77,132.73,50.0]
[1725297623844,7.5329,132.75,132.7,66.1745]
[1725297624164,15.28925458,132.75,132.7,16.1745]
[1725297624343,7.5341,132.73,132.7,16.1745]
[1725297624511,7.5347,132.72,132.66,65.7154]
[1725297625938,15.28925458,132.71,132.66,65.7154]
[1725297626141,0.12549,132.73,132.64,50.0]
[1725297626142,22.82565458,132.69,132.64,50.0]
[1725297628215,15.28925458,132.69,132.64,50.0]
[1725297628412,34.14199,132.73,132.63,15.7154]
[1725297628413,15.28925458,132.71,132.66,50.0]
[1725297628616,7.5348,132.72,132.66,50.0]
[1725297629620,22.82365458,132.73,132.68,50.0]
[1725297630050,7.5344,132.73,132.68,50.0]
[1725297631745,7.5346,132.72,132.66,50.0]
[1725297631928,7.5352,132.71,132.66,50.0]
[1725297633450,7.5348,132.72,132.66,50.0]
[1725297638143,38.38161422,132.73,132.64,50.0]
[1725297638437,7.5354,132.71,132.66,50.0]
[1725297644067,7.5358,132.7,132.66,50.0]
[1725297646165,7.5358,132.7,132.64,50.0]
[1725297646341,7.5358,132.7,132.66,50.0]
[1725297647461,7.5358,132.7,132.64,50.0]
[1725297648340,7.5358,132.7,132.66,50.0]
[1725297648545,7.5354,132.71,132.66,50.0]
[1725297649035,0.12549,132.75,132.63,15.84089]
[1725297649036,15.9979,132.76,132.68,50.0]
[1725297649247,7.5344,132.73,132.68,50.0]
[1725297651251,38.25612422,132.74,132.66,50.0]
[1725297651463,7.535,132.72,132.66,50.0]
[1725297651959,7.535,132.72,132.68,50.0]
[1725297654446,22.83863234,132.73,132.68,50.0]
[1725297659178,7.5338,132.74,132.69,16.3769]
[1725297659346,22.83773234,132.75,132.69,16.3769]
[1725297659548,7.5333,132.75,132.69,16.3769]
[1725297659741,7.5333,132.75,132.7,50.0]
[1725297660761,7.5333,132.75,132.7,51.50679345]
[1725297660971,7.5333,132.75,132.71,1.50679345]
[1725297661969,15.30443234,132.74,132.7,50.0]
[1725297663672,22.83773234,132.75,132.7,50.0]
[1725297664043,15.30443234,132.77,132.72,50.0]
[1725297664251,22.83643234,132.77,132.72,50.0]
[1725297665047,15.30443234,132.77,132.72,50.0]
[1725297666343,15.30443234,132.75,132.7,50.0]
[1725297668257,15.30443234,132.73,132.68,50.0]
[1725297668574,22.83893234,132.73,132.68,50.0]
[1725297668872,7.5345,132.73,132.68,50.0]
[1725297669055,15.6432,132.79,132.72,50.0]
[1725297669371,15.30443234,132.77,132.72,50.0]
[1725297669755,15.30443234,132.77,132.74,50.0]
[1725297670088,22.83633234,132.77,132.72,50.0]
[1725297670659,22.83633234,132.77,132.74,50.0]
[1725297671050,22.83633234,132.77,132.72,50.0]
[1725297671254,7.5336,132.74,132.71,15.1397]
[1725297671970,22.83743234,132.75,132.71,15.1397]
[1725297673473,7.5337,132.74,132.69,50.0]
[1725297675571,7.5346,132.72,132.67,66.6261]
[1725297676854,7.5359,132.7,132.67,66.6261]
[1725297677179,7.5354,132.71,132.67,66.6261]
[1725297678476,7.5347,132.72,132.67,66.6261]
[1725297679585,7.5347,132.72,132.67,50.0]
[1725297679769,22.83973234,132.71,132.65,50.0]
[1725297681572,7.5364,132.69,132.65,50.0]
[1725297682582,7.5359,132.7,132.67,50.0]
[1725297682881,22.83983234,132.71,132.67,50.0]
[1725297683362,6.5788,132.74,132.69,50.0]
[1725297683763,6.5788,132.74,132.67,50.0]
[1725297684280,7.535,132.72,132.67,50.0]
[1725297685364,22.83883234,132.73,132.67,50.0]
[1725297685579,7.5331,132.75,132.69,50.0]
[1725297685972,7.5336,132.74,132.69,50.0]
[1725297686374,15.30443234,132.76,132.71,50.0]
[1725297686686,22.83683234,132.76,132.71,50.0]
[1725297687460,7.5319,132.77,132.71,50.0]
[1725297687660,7.5308,132.79,132.73,50.0]
[1725297687994,6.0625,132.81,132.73,50.0]
[1725297687995,7.5312,132.78,132.73,50.0]
[1725297689801,7.5308,132.79,132.73,50.0]
[1725297690992,7.5308,132.79,132.74,15.1106]
[1725297691289,7.5308,132.79,132.75,1.50631235]
[1725297691486,7.5308,132.79,132.74,15.1106]
[1725297691674,22.83563234,132.78,132.74,15.1106]
[1725297692291,15.30443234,132.78,132.74,15.1106]
[1725297693390,22.83463234,132.8,132.75,50.0]
[1725297695795,7.5312,132.78,132.74,15.1106]
[1725297695979,22.83563234,132.78,132.74,15.1106]
[1725297696189,7.532,132.77,132.71,50.0]
[1725297696489,22.83573234,132.78,132.73,50.0]
[1725297700703,7.5324,132.76,132.71,50.0]
[1725297700911,7.5333,132.75,132.71,50.0]
[1725297701378,22.83693234,132.76,132.71,50.0]
[1725297701578,15.30443234,132.76,132.71,50.0]
[1725297702492,22.83683234,132.76,132.71,50.0]
[1725297703598,22.83683234,132.76,132.7,15.6455]
[1725297704900,7.533,132.75,132.7,15.6455]
[1725297706508,7.533,132.75,132.69,50.0]
[1725297709015,22.83823234,132.74,132.69,50.0]
[1725297714004,15.30443234,132.74,132.69,50.0]
[1725297714207,7.5341,132.73,132.69,50.0]
[1725297715693,22.83803234,132.74,132.69,50.0]
[1725297715896,22.83803234,132.74,132.7,1.50695407]
[1725297716301,22.83803234,132.74,132.69,50.0]
[1725297716893,15.30443234,132.74,132.69,50.0]
[1725297717096,7.5331,132.75,132.69,50.0]
[1725297717313,15.30443234,132.78,132.72,50.0]
[1725297717610,22.83593234,132.78,132.72,50.0]
[1725297717912,15.30443234,132.78,132.74,50.0]
[1725297718718,21.2144,132.88,132.78,50.0]
[1725297718891,7.5271,132.86,132.78,50.0]
[1725297719095,15.30443234,132.83,132.78,50.0]
[1725297719614,15.30443234,132.81,132.76,66.504]
[1725297719821,22.83293234,132.83,132.78,50.0]
[1725297720018,22.83293234,132.83,132.76,66.504]
[1725297720515,22.83293234,132.83,132.78,50.0]
[1725297720899,22.83293234,132.83,132.76,16.504]
[1725297720900,15.30443234,132.81,132.76,66.504]
[1725297721105,22.83303234,132.83,132.78,50.0]
[1725297721300,15.30443234,132.83,132.78,50.0]
[1725297725525,7.528,132.84,132.78,50.0]
[1725297725730,22.83243234,132.84,132.78,50.0]
[1725297727607,22.83243234,132.84,132.8,50.0]
[1725297727809,7.528,132.84,132.8,50.0]
[1725297728619,7.5271,132.86,132.81,1.50569062]
[1725297728810,7.5271,132.86,132.82,50.0]
[1725297729405,7.5271,132.86,132.8,50.0]
[1725297729611,15.30443234,132.87,132.8,50.0]
[1725297730118,7.5276,132.85,132.8,50.0]
[1725297732125,7.528,132.84,132.78,50.0]
[1725297735222,15.30443234,132.85,132.8,50.0]
[1725297735421,7.5272,132.86,132.8,50.0]
[1725297736640,7.5272,132.86,132.82,50.0]
[1725297736823,7.5272,132.86,132.8,50.0]
[1725297737331,7.5273,132.85,132.8,50.0]
[1725297739745,15.30443234,132.87,132.82,50.0]
[1725297740321,22.83063234,132.87,132.82,50.0]
[1725297741216,7.5256,132.88,132.84,50.0]
[1725297742127,22.82963234,132.89,132.84,50.0]
[1725297742514,15.30443234,132.89,132.84,50.0]
[1725297743538,22.82943234,132.89,132.84,50.0]
[1725297747314,7.5258,132.88,132.82,50.0]
[1725297747818,7.5258,132.88,132.84,50.0]
[1725297749626,15.30443234,132.87,132.81,65.9088]
[1725297750241,7.5276,132.85,132.81,65.9088]
[1725297750434,22.83203234,132.85,132.81,65.9088]
[1725297750633,7.5289,132.82,132.81,15.9088]
[1725297750833,7.5285,132.83,132.79,50.0]
[1725297751345,7.528,132.84,132.79,50.0]
[1725297753021,22.83183234,132.85,132.81,50.0]
[1725297753645,15.30443234,132.87,132.81,50.0]
[1725297753850,7.5257,132.88,132.83,50.0]
[1725297754144,22.83013234,132.88,132.83,50.0]
[1725297754521,7.5251,132.89,132.85,50.0]
[1725297754718,22.82953234,132.89,132.85,50.0]
[1725297758931,0.8553885,132.9,132.85,50.0]
[1725297759930,0.8553885,132.9,132.87,50.0]
[1725297765253,16.15982084,132.9,132.83,65.3421]
[1725297765556,15.30443234,132.88,132.83,65.3421]
[1725297765940,22.83003234,132.88,132.83,65.3421]
[1725297766259,15.30443234,132.88,132.83,65.3421]
[1725297766456,23.68472084,132.9,132.85,50.0]
[1725297767767,23.68472084,132.9,132.83,65.3421]
[1725297768063,23.68472084,132.9,132.84,45.0]
[1725297770771,0.8553885,132.9,132.87,50.0]
[1725297774070,0.8553885,132.9,132.89,50.0]
[1725297774651,0.8553885,132.9,132.89,95.0]
[1725297774868,0.8553885,132.9,132.89,95.12549]
[1725297775653,0.8553885,132.9,132.89,95.0]
[1725297778155,0.8553885,132.9,132.89,95.12549]
[1725297780471,0.8553885,132.9,132.89,130.80639234]
[1725297780664,0.8553885,132.9,132.89,132.31069517]
[1725297781813,9.5,133.0,132.95,50.0]
[1725297782376,9.5,133.0,132.97,50.0]
[1725297784676,9.5,133.0,132.99,50.0]
[1725297784883,9.5,133.0,132.96,50.0]
[1725297785758,9.5,133.0,132.98,50.0]
[1725297786585,15.30443234,132.99,132.94,50.0]
[1725297788264,22.82383234,132.99,132.94,50.0]
[1725297791667,15.30443234,132.99,132.96,50.0]
[1725297791978,22.82373234,132.99,132.94,50.0]
[1725297792363,7.52,132.98,132.94,50.0]
[1725297794883,15.30443234,132.97,132.92,50.0]
[1725297795089,15.30443234,132.95,132.9,50.0]
[1725297795262,15.6736,132.96,132.9,50.0]
[1725297795462,15.30443234,132.95,132.9,50.0]
[1725297795684,15.30443234,132.95,132.92,50.0]
[1725297796584,7.5223,132.94,132.9,50.0]
[1725297799277,7.5223,132.94,132.88,50.0]
[1725297799480,15.30443234,132.93,132.88,50.0]
[1725297800597,15.30443234,132.93,132.9,50.0]
[1725297801287,15.30443234,132.93,132.88,50.0]
[1725297801590,22.0538,132.96,132.88,50.0]
[1725297801802,22.0538,132.96,132.86,50.0]
[1725297801803,7.5246,132.9,132.86,50.0]
[1725297802473,22.82853234,132.91,132.86,50.0]
[1725297802669,18.8009,132.98,132.89,50.0]
[1725297802886,22.82653234,132.95,132.91,50.0]
[1725297803773,15.30443234,132.95,132.91,50.0]
[1725297808099,22.82603234,132.95,132.91,50.0]
[1725297808880,15.30443234,132.93,132.89,50.0]
[1725297809597,22.82713234,132.93,132.89,50.0]
[1725297810908,7.5233,132.92,132.87,50.0]
[1725297811078,22.82833234,132.91,132.87,50.0]
[1725297811593,7.5244,132.9,132.85,50.0]
[1725297811792,15.30443234,132.89,132.85,50.0]
[1725297812179,14.80443234,132.89,132.85,50.0]
[1725297815004,14.80443234,132.89,132.83,50.0]
[1725297815183,22.32943234,132.89,132.83,50.0]
[1725297817094,7.5257,132.88,132.83,50.0]
[1725297817287,15.30443234,132.87,132.83,50.0]
[1725297818287,28.99563234,132.89,132.83,50.0]
[1725297818600,28.99563234,132.89,132.85,50.0]
[1725297820700,15.30443234,132.87,132.83,50.0]
[1725297823690,28.99573234,132.89,132.83,50.0]
[1725297829327,7.5259,132.88,132.83,50.0]
[1725297829521,15.30443234,132.87,132.83,50.0]
[1725297830085,6.1661,132.89,132.83,50.0]
[1725297830299,30.91663234,132.9,132.85,50.0]
[1725297830621,15.30443234,132.9,132.86,1.50505537]
[1725297830818,15.30443234,132.9,132.85,50.0]
[1725297830994,15.30443234,132.92,132.87,50.0]
[1725297831388,15.30443234,132.92,132.88,1.50481448]
[1725297832403,22.82773234,132.92,132.87,50.0]
[1725297832905,15.30443234,132.9,132.85,50.0]
[1725297835492,22.82893234,132.9,132.85,50.0]
[1725297837718,22.82893234,132.9,132.83,50.0]
[1725297837890,22.82893234,132.9,132.84,20.0]
[1725297839031,15.30443234,132.89,132.84,20.0]
[1725297840331,15.30443234,132.89,132.85,50.0]
[1725297842334,15.30443234,132.89,132.84,20.0]
[1725297843527,15.30443234,132.89,132.85,50.0]
[1725297844110,7.5234,132.92,132.85,50.0]
[1725297844347,15.69879,132.93,132.87,50.0]
[1725297844348,23.0962,132.93,132.87,50.0]
[1725297844525,30.87773234,132.93,132.87,50.0]
[1725297844708,15.30443234,132.93,132.89,50.0]
[1725297845324,15.30443234,132.93,132.87,50.0]
[1725297845529,22.82733234,132.93,132.87,50.0]
[1725297847731,15.30443234,132.93,132.89,50.0]
[1725297850536,15.30443234,132.93,132.87,50.0]
[1725297851034,22.82753234,132.93,132.87,50.0]
[1725297851540,22.82753234,132.93,132.89,50.0]
[1725297852118,22.82753234,132.93,132.87,50.0]
[1725297853733,7.5234,132.92,132.87,50.0]
[1725297854437,15.30443234,132.91,132.87,50.0]
[1725297856137,22.82833234,132.91,132.87,50.0]
[1725297856344,22.82833234,132.91,132.85,50.0]
[1725297856855,22.82973234,132.89,132.83,66.1403]
[1725297857037,15.30443234,132.89,132.85,50.0]
[1725297861952,15.30443234,132.89,132.83,66.1403]
[1725297862135,15.30443234,132.89,132.84,20.0]
[1725297862741,15.30443234,132.89,132.83,66.1403]
[1725297862936,15.30443234,132.89,132.83,50.0]
[1725297862937,7.5255,132.88,132.83,50.0]
[1725297869534,7.5263,132.87,132.83,50.0]
[1725297871262,15.30443234,132.89,132.83,50.0]
[1725297871263,7.5258,132.88,132.83,50.0]
[1725297872165,7.5267,132.86,132.81,50.0]
[1725297875034,22.83073234,132.87,132.81,50.0]
[1725297880677,22.83073234,132.87,132.79,50.0]
[1725297880678,15.30443234,132.85,132.79,50.0]
[1725297881049,22.83203234,132.85,132.79,50.0]
[1725297882463,29.12223234,132.85,132.79,50.0]
[1725297882669,7.5281,132.84,132.79,50.0]
[1725297883154,7.5281,132.84,132.77,50.0]
[1725297883355,7.5281,132.84,132.78,45.0]
[1725297883556,7.5281,132.84,132.79,50.0]
[1725297884477,6.2902,132.85,132.81,50.0]
[1725297884780,22.7129,132.86,132.81,50.0]
[1725297889158,15.1861,132.86,132.81,50.0]
[1725297889361,22.83073234,132.87,132.81,50.0]
[1725297889866,6.5146,132.89,132.83,50.0]
[1725297890069,6.5146,132.89,132.85,50.0]
[1725297890383,38.45433234,132.9,132.85,50.0]
[1725297894259,15.30443234,132.9,132.85,50.0]
[1725297896390,22.82843234,132.91,132.85,50.0]
[1725297896691,22.82843234,132.91,132.87,50.0]
[1725297897889,7.5246,132.9,132.83,50.0]
[1725297898086,22.82953234,132.89,132.83,50.0]
[1725297899483,15.30443234,132.89,132.85,50.0]
[1725297901291,15.30443234,132.9,132.85,50.0]
[1725297901493,15.30443234,132.92,132.87,50.0]
[1725297901900,15.3099,132.93,132.87,50.0]
[1725297902572,22.833,132.93,132.87,50.0]
[1725297903599,6.3999,132.96,132.89,50.0]
[1725297903894,7.5217,132.95,132.89,50.0]
[1725297904069,15.30443234,132.96,132.91,50.0]
[1725297905096,15.30443234,132.96,132.89,50.0]
[1725297905301,16.242,132.97,132.89,50.0]
[1725297905302,15.30443234,132.94,132.89,50.0]
[1725297906775,22.82653234,132.94,132.88,45.0]
[1725297906975,22.82653234,132.94,132.89,50.0]
[1725297907597,22.82653234,132.94,132.87,50.0]
[1725297907778,15.30443234,132.92,132.87,50.0]
[1725297909788,22.82893234,132.9,132.84,50.0]
[1725297909979,22.82893234,132.9,132.83,15.4656]
[1725297909980,15.30443234,132.9,132.86,50.0]
[1725297910290,15.30443234,132.9,132.84,50.0]
[1725297911079,15.30443234,132.9,132.85,45.0]
[1725297911285,22.82883234,132.9,132.85,45.0]
[1725297912400,15.30443234,132.9,132.84,50.0]
[1725297912612,30.66933234,132.92,132.86,50.0]
[1725297912899,38.19313234,132.92,132.86,50.0]
[1725297913299,7.5239,132.91,132.86,50.0]
[1725297913506,7.5245,132.9,132.86,50.0]
[1725297915221,7.5245,132.9,132.84,50.0]
[1725297915416,7.5245,132.9,132.85,45.0]
[1725297915729,7.525,132.89,132.84,50.0]
[1725297917117,0.12549,132.91,132.84,50.0]
[1725297917320,7.5252,132.89,132.84,50.0]
[1725297918696,7.5252,132.89,132.83,15.4656]
[1725297921813,7.5252,132.89,132.84,50.0]
[1725297922213,22.82903234,132.9,132.86,50.0]
[1725297922429,7.5246,132.9,132.86,50.0]
[1725297922723,7.5246,132.9,132.84,50.12549]
[1725297925519,7.5228,132.93,132.87,50.0]
[1725297925695,15.3296,132.95,132.89,50.0]
[1725297925893,15.3296,132.95,132.9,1.50470208]
[1725297926303,15.3296,132.95,132.89,50.0]
[1725297926502,22.8516,132.95,132.89,50.0]
[1725297927114,7.522,132.95,132.89,50.0]
[1725297927503,22.82563234,132.96,132.91,50.0]
[1725297928724,7.5216,132.95,132.89,50.0]
[1725297931510,0.12549,132.94,132.89,50.0]
[1725297932300,7.64759,132.94,132.89,50.0]
[1725297932501,22.95202234,132.94,132.88,15.6151]
[1725297933130,21.95202234,132.94,132.88,15.6151]
[1725297933709,15.30443234,132.92,132.85,50.0]
[1725297934523,7.5245,132.9,132.85,50.0]
[1725297934930,22.82893234,132.9,132.85,50.0]
[1725297936338,15.30443234,132.9,132.83,50.0]
[1725297936826,7.5259,132.88,132.83,50.0]
[1725297937605,7.5253,132.89,132.85,50.0]
[1725297937811,7.5253,132.89,132.83,50.0]
[1725297939127,7.526,132.88,132.83,50.0]
[1725297939318,22.83043234,132.88,132.83,50.0]
[1725297939520,22.83043234,132.88,132.81,65.8968]
[1725297939740,22.83043234,132.88,132.82,20.0]
[1725297940414,7.5261,132.87,132.81,65.8968]
[1725297940732,7.0261,132.87,132.81,65.8968]
[1725297941429,7.5267,132.86,132.81,65.8968]
[1725297942609,7.5263,132.87,132.81,65.8968]
[1725297943835,7.5268,132.86,132.81,50.0]
[1725297944336,7.5262,132.87,132.81,50.0]
[1725297946425,37.93153234,132.88,132.81,50.0]
[1725297947033,7.5261,132.87,132.81,50.0]
[1725297951535,7.0261,132.87,132.81,50.0]
[1725297954542,7.5267,132.86,132.81,50.0]
[1725297955446,7.5267,132.86,132.79,50.0]
[1725297955736,7.5267,132.86,132.8,20.0]
[1725297957233,7.5273,132.85,132.8,20.0]
[1725297957412,7.5273,132.85,132.79,50.0]
[1725297957737,15.30443234,132.86,132.79,50.0]
[1725297957920,7.5279,132.84,132.79,50.0]
[1725297958541,0.12549,132.85,132.79,50.0]
[1725297958916,7.528,132.84,132.79,50.0]
[1725297959116,7.65299,132.85,132.79,50.0]
[1725297959439,7.5276,132.85,132.79,50.0]
[1725297961345,0.12549,132.85,132.79,50.0]
[1725297961636,0.25098,132.85,132.79,50.0]
[1725297964654,7.77828,132.85,132.79,50.0]
[1725297964939,7.77828,132.85,132.78,16.5828]
[1725297965139,7.77828,132.85,132.79,20.0]
[1725297966919,13.9225,132.87,132.81,50.0]
[1725297969534,22.83303234,132.83,132.75,50.0]
[1725297969733,18.8184,132.85,132.77,50.0]
[1725297969734,0.12549,132.85,132.77,50.0]
[1725297969944,0.12549,132.85,132.77,66.1164]
[1725297969945,7.528,132.84,132.77,66.1164]
[1725297970647,7.5285,132.83,132.77,66.1164]
[1725297971429,7.5289,132.82,132.77,16.1164]
[1725297971819,22.83413234,132.81,132.75,50.0]
[1725297972138,7.5302,132.8,132.73,65.9892]
[1725297972329,7.5302,132.8,132.74,20.0]
[1725297973220,7.531,132.79,132.73,65.9892]
[1725297973419,22.83543234,132.79,132.73,65.9892]
[1725297973921,7.5313,132.78,132.73,65.9892]
[1725297975032,22.83523234,132.79,132.73,65.9892]
[1725297975244,7.5304,132.8,132.75,50.0]
[1725297976942,7.5306,132.79,132.73,65.9892]
[1725297977348,7.5306,132.79,132.69,1.31227874]
[1725297977349,15.30443234,132.77,132.71,50.0]
[1725297977579,7.5325,132.76,132.71,50.0]
[1725297977859,22.83633234,132.77,132.71,50.0]
[1725297980337,15.30443234,132.77,132.69,66.2228]
[1725297980537,7.5326,132.76,132.7,65.0]
[1725297980744,7.533,132.75,132.7,65.0]
[1725297980939,7.533,132.75,132.7,45.0]
[1725297981333,7.533,132.75,132.69,66.2228]
[1725297981937,7.5335,132.74,132.69,66.2228]
[1725297982136,7.5335,132.74,132.67,50.0]
[1725297982335,7.5335,132.74,132.68,20.0]
[1725297982658,7.5336,132.74,132.68,20.0]
[1725297987043,7.5344,132.73,132.68,20.0]
[1725297988144,7.5336,132.74,132.69,1.50721823]
[1725297988662,7.5336,132.74,132.68,20.0]
[1725297993065,22.96302234,132.75,132.68,20.0]
[1725297994358,22.83753234,132.75,132.7,50.0]
[1725297994543,22.6543,132.79,132.72,50.0]
[1725297995355,7.5312,132.78,132.72,50.0]
[1725297995762,22.83523234,132.79,132.72,50.0]
[1725297996558,7.5303,132.8,132.72,50.0]
[1725297996753,7.5303,132.8,132.74,50.0]
[1725297996961,22.83413234,132.81,132.74,50.0]
[1725297997557,15.30443234,132.81,132.74,50.0]
[1725297997740,7.5293,132.82,132.76,50.0]